[Event "Early-Titled-Tuesday-Blitz-October-24-2023"]
[Site "Chess.com"]
[Date "2023.10.24"]
[Round "7"]
[White "LuisFSiles"]
[Black "Cheer_Down"]
[Result "1-0"]
[WhiteElo "2287"]
[BlackElo "2416"]
[TimeControl "180+1"]
[EndTime "9:12:28 PDT"]
[Termination "LuisFSiles won by resignation"]

1. e4 {[%clk 0:03:00.9]} 1... c5 {[%clk 0:02:33.6]} 2. Nf3 {[%clk 0:02:59.5]}
2... d6 {[%clk 0:02:33.9]} 3. d4 {[%clk 0:02:58.8]} 3... cxd4 {[%clk 0:02:34.1]}
4. Nxd4 {[%clk 0:02:59.5]} 4... Nf6 {[%clk 0:02:34.5]} 5. Nc3 {[%clk 0:03:00]}
5... a6 {[%clk 0:02:34.6]} 6. Bg5 {[%clk 0:03:00.6]} 6... e6 {[%clk 0:02:34.4]}
7. Qf3 {[%clk 0:03:00.3]} 7... h6 {[%clk 0:02:30.4]} 8. Bd2 {[%clk 0:02:47.9]}
8... Nc6 {[%clk 0:02:28.4]} 9. Nb3 {[%clk 0:02:44.7]} 9... Be7 {[%clk
0:02:20.9]} 10. Bd3 {[%clk 0:02:43.5]} 10... Ne5 {[%clk 0:02:08]} 11. Qg3 {[%clk
0:02:42.4]} 11... Nxd3+ {[%clk 0:02:07.6]} 12. cxd3 {[%clk 0:02:37.9]} 12... Nh5
{[%clk 0:02:06.2]} 13. Qf3 {[%clk 0:02:35.8]} 13... Nf6 {[%clk 0:02:05.8]} 14.
O-O {[%clk 0:02:33.1]} 14... O-O {[%clk 0:02:05.5]} 15. Qg3 {[%clk 0:02:33.1]}
15... Nh5 {[%clk 0:02:04]} 16. Qh3 {[%clk 0:02:31.4]} 16... Nf6 {[%clk
0:02:03.6]} 17. f4 {[%clk 0:02:28.1]} 17... e5 {[%clk 0:02:02.1]} 18. f5 {[%clk
0:02:27.8]} 18... d5 {[%clk 0:02:02.5]} 19. Bxh6 {[%clk 0:02:24.9]} 19... gxh6
{[%clk 0:01:59.9]} 20. Qxh6 {[%clk 0:02:19.7]} 20... dxe4 {[%clk 0:01:59.2]} 21.
dxe4 {[%clk 0:02:14.8]} 21... Qb6+ {[%clk 0:01:48]} 22. Kh1 {[%clk 0:02:12.7]}
22... Nd5 {[%clk 0:01:48]} 23. f6 {[%clk 0:01:41.9]} 23... Nxf6 {[%clk
0:01:43.6]} 24. Rf3 {[%clk 0:01:33.6]} 24... Be6 {[%clk 0:01:35.7]} 25. Nd5
{[%clk 0:01:24.2]} 25... Rfd8 {[%clk 0:01:08.2]} 1-0

[Event "Early-Titled-Tuesday-Blitz-October-24-2023"]
[Site "Chess.com"]
[Date "2023.10.24"]
[Round "7"]
[White "Sofia_Blokhin"]
[Black "Ykow"]
[Result "0-1"]
[WhiteElo "2262"]
[BlackElo "2520"]
[TimeControl "180+1"]
[EndTime "9:12:32 PDT"]
[Termination "Ykow won by resignation"]

1. d4 {[%clk 0:03:00.9]} 1... d5 {[%clk 0:02:58.9]} 2. c4 {[%clk 0:02:59.8]}
2... e5 {[%clk 0:02:59]} 3. dxe5 {[%clk 0:02:58.5]} 3... d4 {[%clk 0:02:59.9]}
4. a3 {[%clk 0:02:58.3]} 4... Nc6 {[%clk 0:02:59.7]} 5. Nf3 {[%clk 0:02:58.3]}
5... Bg4 {[%clk 0:02:59.6]} 6. Bf4 {[%clk 0:02:50.6]} 6... Nge7 {[%clk 0:02:59]}
7. e3 {[%clk 0:02:50]} 7... Ng6 {[%clk 0:02:58.8]} 8. Bg3 {[%clk 0:02:46.2]}
8... dxe3 {[%clk 0:02:58.2]} 9. Qxd8+ {[%clk 0:02:38.2]} 9... Rxd8 {[%clk
0:02:59.1]} 10. fxe3 {[%clk 0:02:36.4]} 10... Bc5 {[%clk 0:02:58.9]} 11. Bf4
{[%clk 0:02:25.5]} 11... Nxf4 {[%clk 0:02:53.4]} 12. exf4 {[%clk 0:02:24.7]}
12... Be3 {[%clk 0:02:54.3]} 13. Nc3 {[%clk 0:02:13.3]} 13... Bxf3 {[%clk
0:02:50.7]} 14. gxf3 {[%clk 0:02:11.9]} 14... Bxf4 {[%clk 0:02:51]} 15. Rg1
{[%clk 0:02:03.6]} 15... O-O {[%clk 0:02:49.6]} 16. e6 {[%clk 0:02:00.2]} 16...
fxe6 {[%clk 0:02:48.2]} 17. Bh3 {[%clk 0:01:57.4]} 17... Nd4 {[%clk 0:02:48.1]}
18. Kf2 {[%clk 0:01:52.9]} 18... Bxh2 {[%clk 0:02:48.5]} 19. Rg4 {[%clk
0:01:41.9]} 19... Be5 {[%clk 0:02:34.5]} 20. Bg2 {[%clk 0:01:29.2]} 20... Nf5
{[%clk 0:02:34.8]} 21. Ne4 {[%clk 0:01:23.5]} 21... h5 {[%clk 0:02:32]} 22. Rg5
{[%clk 0:01:20.3]} 22... Bd4+ {[%clk 0:02:30.6]} 23. Ke2 {[%clk 0:01:16.8]}
23... h4 {[%clk 0:02:26.1]} 24. Bh3 {[%clk 0:01:13.6]} 24... Bxb2 {[%clk
0:02:26.1]} 25. Rag1 {[%clk 0:01:07.8]} 25... Nd4+ {[%clk 0:02:15.4]} 26. Ke3
{[%clk 0:01:05.2]} 26... Rxf3+ {[%clk 0:02:13.6]} 27. Kd2 {[%clk 0:01:03.8]}
27... Nf5+ {[%clk 0:02:05.3]} 28. Kc2 {[%clk 0:01:01.2]} 28... Rxh3 {[%clk
0:02:05.5]} 29. Kxb2 {[%clk 0:01:01.4]} 29... Rd4 {[%clk 0:02:05.9]} 30. Nf6+
{[%clk 0:00:59.5]} 30... Kf7 {[%clk 0:02:06.1]} 31. Nh5 {[%clk 0:00:54.4]} 31...
Rd2+ {[%clk 0:02:05.7]} 32. Kc1 {[%clk 0:00:53.3]} 32... Ra2 {[%clk 0:02:05.7]}
33. Nxg7 {[%clk 0:00:46.2]} 33... Ra1+ {[%clk 0:02:04]} 34. Kb2 {[%clk
0:00:43.6]} 34... Rxg1 {[%clk 0:02:04.9]} 0-1

[Event "Early-Titled-Tuesday-Blitz-October-24-2023"]
[Site "Chess.com"]
[Date "2023.10.24"]
[Round "7"]
[White "rajesh1464"]
[Black "IsaqueGoncalvesSanto"]
[Result "1-0"]
[WhiteElo "2301"]
[BlackElo "1828"]
[TimeControl "180+1"]
[EndTime "9:12:32 PDT"]
[Termination "rajesh1464 won by checkmate"]

1. d4 {[%clk 0:02:41.4]} 1... e6 {[%clk 0:02:59]} 2. Nc3 {[%clk 0:02:39.6]} 2...
Bb4 {[%clk 0:02:52.5]} 3. e4 {[%clk 0:02:38.7]} 3... d5 {[%clk 0:02:51.7]} 4. e5
{[%clk 0:02:38.3]} 4... Qd7 {[%clk 0:02:51.6]} 5. Bd3 {[%clk 0:02:35.9]} 5... b6
{[%clk 0:02:50.2]} 6. Qe2 {[%clk 0:02:34.7]} 6... Ne7 {[%clk 0:02:41.7]} 7. a3
{[%clk 0:02:34.1]} 7... Bxc3+ {[%clk 0:02:41.1]} 8. bxc3 {[%clk 0:02:35]} 8...
Qa4 {[%clk 0:02:35.1]} 9. Nf3 {[%clk 0:02:32.4]} 9... Ba6 {[%clk 0:02:34.5]} 10.
O-O {[%clk 0:02:31.7]} 10... Bxd3 {[%clk 0:02:33.9]} 11. cxd3 {[%clk 0:02:31.7]}
11... c5 {[%clk 0:02:26.2]} 12. c4 {[%clk 0:02:30.6]} 12... dxc4 {[%clk
0:02:15.4]} 13. dxc4 {[%clk 0:02:30.4]} 13... cxd4 {[%clk 0:02:14.2]} 14. Nxd4
{[%clk 0:02:30.1]} 14... Nd7 {[%clk 0:01:56.4]} 15. Nb5 {[%clk 0:02:29]} 15...
O-O {[%clk 0:01:50.9]} 16. Bg5 {[%clk 0:02:27.6]} 16... Nc6 {[%clk 0:01:45.7]}
17. f4 {[%clk 0:02:24.5]} 17... Na5 {[%clk 0:01:43.4]} 18. Rac1 {[%clk
0:02:22.2]} 18... Rac8 {[%clk 0:01:40.5]} 19. Nd6 {[%clk 0:02:19.7]} 19... Rc6
{[%clk 0:01:35]} 20. Rc3 {[%clk 0:02:18.5]} 20... Nc5 {[%clk 0:01:14.4]} 21. Rg3
{[%clk 0:02:12.4]} 21... Nab7 {[%clk 0:00:42.4]} 22. Bf6 {[%clk 0:02:07]} 22...
g6 {[%clk 0:00:40.6]} 23. Qh5 {[%clk 0:02:06.5]} 23... Nxd6 {[%clk 0:00:31.5]}
24. Qxh7+ {[%clk 0:02:06.3]} 24... Kxh7 {[%clk 0:00:28.7]} 25. Rh3+ {[%clk
0:02:06.5]} 25... Kg8 {[%clk 0:00:27.6]} 26. Rh8# {[%clk 0:02:07]} 1-0

[Event "Early-Titled-Tuesday-Blitz-October-24-2023"]
[Site "Chess.com"]
[Date "2023.10.24"]
[Round "7"]
[White "CristianS27"]
[Black "Nyzhnyk_Illia"]
[Result "0-1"]
[WhiteElo "2559"]
[BlackElo "2877"]
[TimeControl "180+1"]
[EndTime "9:12:42 PDT"]
[Termination "Nyzhnyk_Illia won by resignation"]

1. e4 {[%clk 0:03:00.9]} 1... c6 {[%clk 0:03:00]} 2. d4 {[%clk 0:03:00.8]} 2...
d5 {[%clk 0:03:00.9]} 3. exd5 {[%clk 0:03:01.7]} 3... cxd5 {[%clk 0:03:01.4]} 4.
c4 {[%clk 0:03:02.6]} 4... Nf6 {[%clk 0:03:01.4]} 5. Nc3 {[%clk 0:03:03.5]} 5...
e6 {[%clk 0:02:59.9]} 6. c5 {[%clk 0:03:03.1]} 6... Nc6 {[%clk 0:02:57.3]} 7.
Nf3 {[%clk 0:03:03]} 7... g6 {[%clk 0:02:57.9]} 8. Bb5 {[%clk 0:03:02]} 8... Bg7
{[%clk 0:02:58.3]} 9. Bf4 {[%clk 0:02:52.4]} 9... O-O {[%clk 0:02:58.1]} 10. Bd6
{[%clk 0:02:52.6]} 10... Re8 {[%clk 0:02:58.6]} 11. Ne5 {[%clk 0:02:53.2]} 11...
Bd7 {[%clk 0:02:58.5]} 12. Bxc6 {[%clk 0:02:47.1]} 12... Bxc6 {[%clk 0:02:56.4]}
13. b4 {[%clk 0:02:38.8]} 13... Ne4 {[%clk 0:02:54.9]} 14. Qf3 {[%clk
0:02:32.8]} 14... Nxc3 {[%clk 0:02:43.2]} 15. Qxf7+ {[%clk 0:02:18.3]} 15... Kh8
{[%clk 0:02:43.4]} 16. Qf3 {[%clk 0:02:19.2]} 16... Qh4 {[%clk 0:02:40.1]} 17.
Qxc3 {[%clk 0:02:11.1]} 17... Qe4+ {[%clk 0:02:40.7]} 18. Qe3 {[%clk 0:01:57.1]}
18... Qxg2 {[%clk 0:02:40.7]} 19. O-O-O {[%clk 0:01:47]} 19... a5 {[%clk
0:02:36.4]} 20. Rhg1 {[%clk 0:01:12.4]} 20... Qe4 {[%clk 0:02:36.3]} 21. Qxe4
{[%clk 0:00:52.4]} 21... dxe4 {[%clk 0:02:37.2]} 22. Nxg6+ {[%clk 0:00:24]}
22... hxg6 {[%clk 0:02:36.1]} 23. Rxg6 {[%clk 0:00:24.9]} 23... Kh7 {[%clk
0:02:31.6]} 24. Rdg1 {[%clk 0:00:23.9]} 24... Bh6+ {[%clk 0:02:31.5]} 25. Kb2
{[%clk 0:00:21.2]} 25... Rg8 {[%clk 0:02:30.5]} 26. Rxg8 {[%clk 0:00:12.5]}
26... Rxg8 {[%clk 0:02:31.4]} 27. Rxg8 {[%clk 0:00:11.9]} 27... Kxg8 {[%clk
0:02:32.3]} 28. bxa5 {[%clk 0:00:10.7]} 28... Bd2 {[%clk 0:02:33]} 29. Bc7
{[%clk 0:00:07.8]} 29... Be1 {[%clk 0:02:33.4]} 30. Bg3 {[%clk 0:00:07.1]} 30...
Bxa5 {[%clk 0:02:34.1]} 31. Kc2 {[%clk 0:00:05.9]} 31... Kf7 {[%clk 0:02:33.9]}
32. h4 {[%clk 0:00:05.4]} 32... Kg6 {[%clk 0:02:34.2]} 33. Kd1 {[%clk
0:00:03.7]} 33... Bb5 {[%clk 0:02:34.5]} 34. Be5 {[%clk 0:00:01.9]} 34... Kh5
{[%clk 0:02:34.7]} 35. Bg3 {[%clk 0:00:02.8]} 35... Kg4 {[%clk 0:02:35]} 36. Be5
{[%clk 0:00:02.9]} 36... Kxh4 {[%clk 0:02:35.2]} 0-1

[Event "Early-Titled-Tuesday-Blitz-October-24-2023"]
[Site "Chess.com"]
[Date "2023.10.24"]
[Round "7"]
[White "Rud_Makarian"]
[Black "I_am_Javi"]
[Result "1-0"]
[WhiteElo "2973"]
[BlackElo "2805"]
[TimeControl "180+1"]
[EndTime "9:12:50 PDT"]
[Termination "Rud_Makarian won by resignation"]

1. d4 {[%clk 0:03:00.9]} 1... Nf6 {[%clk 0:02:59.5]} 2. c4 {[%clk 0:03:01.5]}
2... g6 {[%clk 0:03:00.2]} 3. Nc3 {[%clk 0:03:00.8]} 3... Bg7 {[%clk 0:03:00.9]}
4. e4 {[%clk 0:03:00.7]} 4... d6 {[%clk 0:03:01.7]} 5. Be2 {[%clk 0:03:01.5]}
5... O-O {[%clk 0:03:02.5]} 6. Be3 {[%clk 0:03:02]} 6... e5 {[%clk 0:03:03.2]}
7. d5 {[%clk 0:03:02.4]} 7... a5 {[%clk 0:03:03.1]} 8. g4 {[%clk 0:03:02.9]}
8... Na6 {[%clk 0:03:02.9]} 9. g5 {[%clk 0:03:03.2]} 9... Nd7 {[%clk 0:03:02.9]}
10. h4 {[%clk 0:03:03.3]} 10... Ndc5 {[%clk 0:02:41.9]} 11. h5 {[%clk
0:03:02.6]} 11... c6 {[%clk 0:02:38.6]} 12. Nf3 {[%clk 0:02:58.4]} 12... Bg4
{[%clk 0:02:34.5]} 13. Kf1 {[%clk 0:02:54.7]} 13... cxd5 {[%clk 0:02:08.8]} 14.
cxd5 {[%clk 0:02:46.9]} 14... Rc8 {[%clk 0:02:01.7]} 15. Nd2 {[%clk 0:02:44.7]}
15... Bxe2+ {[%clk 0:01:59]} 16. Qxe2 {[%clk 0:02:45.6]} 16... Nb4 {[%clk
0:01:58.1]} 17. Nf3 {[%clk 0:02:17.1]} 17... f5 {[%clk 0:01:27.5]} 18. hxg6
{[%clk 0:02:01.7]} 18... h6 {[%clk 0:01:25]} 19. gxh6 {[%clk 0:02:00.6]} 19...
fxe4 {[%clk 0:00:58.5]} 20. hxg7 {[%clk 0:01:49.9]} 20... exf3 {[%clk
0:00:54.9]} 21. gxf8=Q+ {[%clk 0:01:47.2]} 21... Qxf8 {[%clk 0:00:54]} 22. Qd2
{[%clk 0:01:46.3]} 22... Qf5 {[%clk 0:00:47]} 23. Bxc5 {[%clk 0:01:45]} 1-0

[Event "Early-Titled-Tuesday-Blitz-October-24-2023"]
[Site "Chess.com"]
[Date "2023.10.24"]
[Round "7"]
[White "Matols"]
[Black "CraiggoryC"]
[Result "1-0"]
[WhiteElo "2409"]
[BlackElo "2229"]
[TimeControl "180+1"]
[EndTime "9:12:51 PDT"]
[Termination "Matols won by resignation"]

1. d4 {[%clk 0:03:00.9]} 1... e6 {[%clk 0:02:54.5]} 2. c4 {[%clk 0:03:00.6]}
2... Nf6 {[%clk 0:02:53.5]} 3. g3 {[%clk 0:02:59]} 3... d5 {[%clk 0:02:53.1]} 4.
Nf3 {[%clk 0:02:58.5]} 4... Be7 {[%clk 0:02:53.8]} 5. Bg2 {[%clk 0:02:58.8]}
5... O-O {[%clk 0:02:54.4]} 6. O-O {[%clk 0:02:59.5]} 6... dxc4 {[%clk
0:02:54.9]} 7. Qc2 {[%clk 0:02:59.1]} 7... a6 {[%clk 0:02:55.5]} 8. a4 {[%clk
0:02:59.7]} 8... Bd7 {[%clk 0:02:55.2]} 9. Qxc4 {[%clk 0:02:59.7]} 9... Bc6
{[%clk 0:02:55.9]} 10. Bf4 {[%clk 0:03:00]} 10... a5 {[%clk 0:02:48.4]} 11. Nc3
{[%clk 0:02:59]} 11... Na6 {[%clk 0:02:48.5]} 12. Rfd1 {[%clk 0:02:57.8]} 12...
Nb4 {[%clk 0:02:48.1]} 13. Rac1 {[%clk 0:02:55.4]} 13... Nfd5 {[%clk 0:02:19.4]}
14. Bd2 {[%clk 0:02:30]} 14... Nb6 {[%clk 0:02:15.7]} 15. Qb3 {[%clk 0:02:28]}
15... Bd5 {[%clk 0:01:53.8]} 16. Nxd5 {[%clk 0:02:26.9]} 16... Qxd5 {[%clk
0:01:54.3]} 17. Qxd5 {[%clk 0:02:19.7]} 17... exd5 {[%clk 0:01:37.7]} 18. Rxc7
{[%clk 0:02:16.9]} 18... Bd8 {[%clk 0:01:11.5]} 19. Rxb7 {[%clk 0:02:15]} 19...
Nxa4 {[%clk 0:01:11.7]} 20. Bxb4 {[%clk 0:02:10.7]} 20... axb4 {[%clk
0:00:54.7]} 21. Rxb4 {[%clk 0:02:11.6]} 21... Be7 {[%clk 0:00:33.1]} 22. Rb7
{[%clk 0:02:09.9]} 22... Rfe8 {[%clk 0:00:20.4]} 23. Ra1 {[%clk 0:02:08.3]}
23... Bf8 {[%clk 0:00:17.3]} 24. e3 {[%clk 0:02:07]} 24... Rec8 {[%clk
0:00:11.5]} 25. Ne5 {[%clk 0:02:02.2]} 25... f6 {[%clk 0:00:10.8]} 26. Bxd5+
{[%clk 0:02:00.7]} 26... Kh8 {[%clk 0:00:10.3]} 27. Nf7+ {[%clk 0:01:58.3]} 1-0

[Event "Early-Titled-Tuesday-Blitz-October-24-2023"]
[Site "Chess.com"]
[Date "2023.10.24"]
[Round "7"]
[White "ZeGood_ZeBad_ZeUgly"]
[Black "tarno17"]
[Result "1-0"]
[WhiteElo "2308"]
[BlackElo "2108"]
[TimeControl "180+1"]
[EndTime "9:12:52 PDT"]
[Termination "ZeGood_ZeBad_ZeUgly won by checkmate"]

1. e4 {[%clk 0:03:00.9]} 1... c5 {[%clk 0:02:59.8]} 2. Nf3 {[%clk 0:03:00]} 2...
e6 {[%clk 0:02:59.9]} 3. d4 {[%clk 0:02:57.5]} 3... cxd4 {[%clk 0:03:00.4]} 4.
Nxd4 {[%clk 0:02:58.4]} 4... a6 {[%clk 0:02:59.4]} 5. Nc3 {[%clk 0:02:57]} 5...
Qc7 {[%clk 0:02:59.4]} 6. a3 {[%clk 0:02:50.5]} 6... b5 {[%clk 0:02:58.7]} 7.
Be3 {[%clk 0:02:49]} 7... Bb7 {[%clk 0:02:58.3]} 8. Be2 {[%clk 0:02:48.9]} 8...
Nf6 {[%clk 0:02:57.6]} 9. f3 {[%clk 0:02:47.3]} 9... d5 {[%clk 0:02:56.1]} 10.
exd5 {[%clk 0:02:32.7]} 10... Nxd5 {[%clk 0:02:57]} 11. Nxd5 {[%clk 0:02:32.5]}
11... Bxd5 {[%clk 0:02:57.9]} 12. Rc1 {[%clk 0:02:29.1]} 12... Bd6 {[%clk
0:02:52]} 13. Qd2 {[%clk 0:01:46.6]} 13... Bxh2 {[%clk 0:02:44.6]} 14. f4 {[%clk
0:01:23.8]} 14... Bg3+ {[%clk 0:02:41.4]} 15. Kf1 {[%clk 0:01:23.6]} 15... e5
{[%clk 0:01:40]} 16. Nf5 {[%clk 0:01:23.3]} 16... Bxf4 {[%clk 0:01:30.1]} 17.
Bxf4 {[%clk 0:01:18.6]} 17... Bxg2+ {[%clk 0:01:26.4]} 18. Kxg2 {[%clk
0:01:19.5]} 18... exf4 {[%clk 0:01:25.9]} 19. Bf3 {[%clk 0:01:16.9]} 19... O-O
{[%clk 0:00:55.6]} 20. Bxa8 {[%clk 0:01:13.6]} 20... Nd7 {[%clk 0:00:56]} 21.
Ne7+ {[%clk 0:01:04.3]} 21... Kh8 {[%clk 0:00:55.1]} 22. Rxh7+ {[%clk
0:01:03.3]} 22... Kxh7 {[%clk 0:00:51.7]} 23. Rh1# {[%clk 0:01:04.2]} 1-0

[Event "Early-Titled-Tuesday-Blitz-October-24-2023"]
[Site "Chess.com"]
[Date "2023.10.24"]
[Round "7"]
[White "Chernov_Mikhail"]
[Black "SaqoChess_Twitch"]
[Result "1-0"]
[WhiteElo "2435"]
[BlackElo "2563"]
[TimeControl "180+1"]
[EndTime "9:12:55 PDT"]
[Termination "Chernov_Mikhail won by checkmate"]

1. d4 {[%clk 0:03:00.9]} 1... d6 {[%clk 0:02:58.7]} 2. e4 {[%clk 0:03:00.5]}
2... e5 {[%clk 0:02:58.6]} 3. dxe5 {[%clk 0:02:58.7]} 3... dxe5 {[%clk
0:02:59.5]} 4. Qxd8+ {[%clk 0:02:59.1]} 4... Kxd8 {[%clk 0:03:00.4]} 5. Nf3
{[%clk 0:02:57.2]} 5... f6 {[%clk 0:03:00.5]} 6. Nc3 {[%clk 0:02:56.1]} 6... c6
{[%clk 0:03:01]} 7. Be3 {[%clk 0:02:55.6]} 7... Kc7 {[%clk 0:03:01.5]} 8. O-O-O
{[%clk 0:02:56.1]} 8... Be6 {[%clk 0:02:58.5]} 9. Nd2 {[%clk 0:02:55.6]} 9...
Nd7 {[%clk 0:02:58.7]} 10. f4 {[%clk 0:02:55]} 10... Bb4 {[%clk 0:02:56.2]} 11.
f5 {[%clk 0:02:53.7]} 11... Bf7 {[%clk 0:02:56.1]} 12. Bc4 {[%clk 0:02:49.9]}
12... Nh6 {[%clk 0:02:52.3]} 13. Bxh6 {[%clk 0:02:36]} 13... Bxc4 {[%clk
0:02:52.1]} 14. Bxg7 {[%clk 0:02:35.4]} 14... Rhg8 {[%clk 0:02:52.1]} 15. Nxc4
{[%clk 0:02:04.5]} 15... Rxg7 {[%clk 0:02:51.3]} 16. g3 {[%clk 0:02:00.3]} 16...
Bxc3 {[%clk 0:02:51.6]} 17. bxc3 {[%clk 0:02:00.5]} 17... Nc5 {[%clk 0:02:50.1]}
18. Rhe1 {[%clk 0:01:49.2]} 18... b5 {[%clk 0:02:49.9]} 19. Nb2 {[%clk
0:01:31.5]} 19... a5 {[%clk 0:02:46.5]} 20. Nd3 {[%clk 0:01:30.9]} 20... Na4
{[%clk 0:02:46.4]} 21. a3 {[%clk 0:01:06.4]} 21... Nxc3 {[%clk 0:02:43.4]} 22.
Rd2 {[%clk 0:01:06.9]} 22... b4 {[%clk 0:02:40]} 23. Nc5 {[%clk 0:00:13.6]}
23... bxa3 {[%clk 0:02:30.5]} 24. Ne6+ {[%clk 0:00:13.5]} 24... Kc8 {[%clk
0:02:31.4]} 25. Rd8+ {[%clk 0:00:06.8]} 25... Kb7 {[%clk 0:02:31.3]} 26. Rxa8
{[%clk 0:00:07.7]} 26... Re7 {[%clk 0:02:18.5]} 27. Rxa5 {[%clk 0:00:07.3]}
27... a2 {[%clk 0:02:18.3]} 28. Kb2 {[%clk 0:00:07.7]} 28... Kb6 {[%clk
0:02:19]} 29. Ra8 {[%clk 0:00:06.7]} 29... Nb1 {[%clk 0:02:15.6]} 30. Kxa2
{[%clk 0:00:06]} 30... Nd2 {[%clk 0:02:16.5]} 31. Rd1 {[%clk 0:00:05.3]} 31...
Nc4 {[%clk 0:02:16.8]} 32. Rb1+ {[%clk 0:00:04.3]} 32... Nb2 {[%clk 0:02:16.1]}
33. Rxb2# {[%clk 0:00:04.4]} 1-0

[Event "Early-Titled-Tuesday-Blitz-October-24-2023"]
[Site "Chess.com"]
[Date "2023.10.24"]
[Round "7"]
[White "Masterbeaterr"]
[Black "jraosam"]
[Result "0-1"]
[WhiteElo "2422"]
[BlackElo "2164"]
[TimeControl "180+1"]
[EndTime "9:12:56 PDT"]
[Termination "jraosam won by checkmate"]

1. d4 {[%clk 0:03:00.9]} 1... d5 {[%clk 0:02:59.3]} 2. c4 {[%clk 0:03:00.9]}
2... c6 {[%clk 0:02:59]} 3. Nc3 {[%clk 0:02:56.9]} 3... Nf6 {[%clk 0:02:57.3]}
4. e3 {[%clk 0:02:56.6]} 4... e6 {[%clk 0:02:56.7]} 5. Nf3 {[%clk 0:02:57]} 5...
Bd6 {[%clk 0:02:56.6]} 6. b3 {[%clk 0:02:55.5]} 6... Nbd7 {[%clk 0:02:55.5]} 7.
Bb2 {[%clk 0:02:55.8]} 7... O-O {[%clk 0:02:54.8]} 8. Rc1 {[%clk 0:02:55.4]}
8... Qe7 {[%clk 0:02:54.6]} 9. Rc2 {[%clk 0:02:54]} 9... b6 {[%clk 0:02:53.6]}
10. Qc1 {[%clk 0:02:53.3]} 10... Bb7 {[%clk 0:02:53.3]} 11. cxd5 {[%clk
0:02:53]} 11... exd5 {[%clk 0:02:52.2]} 12. Bd3 {[%clk 0:02:53.2]} 12... Rac8
{[%clk 0:02:51.2]} 13. O-O {[%clk 0:02:52.8]} 13... c5 {[%clk 0:02:51.5]} 14.
Ne2 {[%clk 0:02:48.8]} 14... Ne4 {[%clk 0:02:46.4]} 15. Ng3 {[%clk 0:02:43.6]}
15... f5 {[%clk 0:02:45.3]} 16. dxc5 {[%clk 0:02:38.7]} 16... bxc5 {[%clk
0:02:45.2]} 17. Rd1 {[%clk 0:02:33.8]} 17... g6 {[%clk 0:02:09.8]} 18. Bb5
{[%clk 0:02:26.6]} 18... Ndf6 {[%clk 0:01:58.3]} 19. Ba3 {[%clk 0:02:12]} 19...
h5 {[%clk 0:01:48.8]} 20. Nxe4 {[%clk 0:02:11.2]} 20... fxe4 {[%clk 0:01:45.7]}
21. Ne1 {[%clk 0:02:04.5]} 21... Ng4 {[%clk 0:01:13.8]} 22. h3 {[%clk
0:02:02.8]} 22... Qe5 {[%clk 0:01:05.9]} 23. hxg4 {[%clk 0:01:57.9]} 23... Qh2+
{[%clk 0:01:05]} 24. Kf1 {[%clk 0:01:58.4]} 24... h4 {[%clk 0:00:43.7]} 25. Bxc5
{[%clk 0:01:56.9]} 25... Bxc5 {[%clk 0:00:18.5]} 26. Rxc5 {[%clk 0:01:57.8]}
26... h3 {[%clk 0:00:18.9]} 27. gxh3 {[%clk 0:01:54.8]} 27... Qxf2# {[%clk
0:00:18.2]} 0-1

[Event "Early-Titled-Tuesday-Blitz-October-24-2023"]
[Site "Chess.com"]
[Date "2023.10.24"]
[Round "7"]
[White "Giorno"]
[Black "KVAIDAN"]
[Result "1-0"]
[WhiteElo "2548"]
[BlackElo "2375"]
[TimeControl "180+1"]
[EndTime "9:13:00 PDT"]
[Termination "Giorno won by checkmate"]

1. g3 {[%clk 0:03:00.2]} 1... f5 {[%clk 0:02:59.3]} 2. Bg2 {[%clk 0:02:58.3]}
2... Nf6 {[%clk 0:02:59.6]} 3. c4 {[%clk 0:02:56.9]} 3... d6 {[%clk 0:02:59.7]}
4. d3 {[%clk 0:02:55.2]} 4... e5 {[%clk 0:02:59.6]} 5. Nc3 {[%clk 0:02:54.8]}
5... Be7 {[%clk 0:03:00.1]} 6. e4 {[%clk 0:02:54.9]} 6... O-O {[%clk 0:03:00.4]}
7. Nge2 {[%clk 0:02:55.1]} 7... Nc6 {[%clk 0:03:00.4]} 8. h3 {[%clk 0:02:55.1]}
8... Qe8 {[%clk 0:02:59.5]} 9. Be3 {[%clk 0:02:47.1]} 9... Qg6 {[%clk
0:02:58.7]} 10. O-O {[%clk 0:02:37.1]} 10... f4 {[%clk 0:02:55.1]} 11. gxf4
{[%clk 0:02:30.3]} 11... Bxh3 {[%clk 0:02:53.8]} 12. Ng3 {[%clk 0:02:30]} 12...
Nh5 {[%clk 0:02:45.5]} 13. Qxh5 {[%clk 0:02:27.2]} 13... Bxg2 {[%clk 0:02:45.2]}
14. Kxg2 {[%clk 0:02:22.1]} 14... exf4 {[%clk 0:02:45.7]} 15. Qxg6 {[%clk
0:02:16.1]} 15... hxg6 {[%clk 0:02:45.8]} 16. Bxf4 {[%clk 0:02:14.2]} 16... Rxf4
{[%clk 0:02:44.7]} 17. Nd5 {[%clk 0:02:14.5]} 17... Rf7 {[%clk 0:02:44.9]} 18.
Nxc7 {[%clk 0:02:13.8]} 18... Rc8 {[%clk 0:02:43.1]} 19. Nd5 {[%clk 0:02:14]}
19... Ne5 {[%clk 0:02:38.5]} 20. Rad1 {[%clk 0:02:09.3]} 20... a6 {[%clk
0:02:29.4]} 21. f4 {[%clk 0:02:07.2]} 21... Ng4 {[%clk 0:02:28.1]} 22. f5 {[%clk
0:02:07.6]} 22... gxf5 {[%clk 0:02:24.3]} 23. Nxf5 {[%clk 0:02:01.7]} 23... Bf8
{[%clk 0:02:24.5]} 24. Rf4 {[%clk 0:01:54.8]} 24... Ne5 {[%clk 0:02:20.9]} 25.
b3 {[%clk 0:01:52.9]} 25... b5 {[%clk 0:02:19]} 26. d4 {[%clk 0:01:42.2]} 26...
Nc6 {[%clk 0:02:05.1]} 27. Rg4 {[%clk 0:01:40.6]} 27... Rb7 {[%clk 0:01:44.2]}
28. cxb5 {[%clk 0:01:28.9]} 28... axb5 {[%clk 0:01:42.2]} 29. Rc1 {[%clk
0:01:27.6]} 29... Rbb8 {[%clk 0:01:38.7]} 30. Rxc6 {[%clk 0:01:19.6]} 30... Rxc6
{[%clk 0:01:38.4]} 31. Nde7+ {[%clk 0:01:19.8]} 31... Bxe7 {[%clk 0:01:38.8]}
32. Nxe7+ {[%clk 0:01:20.6]} 32... Kf7 {[%clk 0:01:38.4]} 33. Nxc6 {[%clk
0:01:21.5]} 33... Ra8 {[%clk 0:01:38.2]} 34. Rf4+ {[%clk 0:01:18.9]} 34... Ke8
{[%clk 0:01:33.5]} 35. Rf2 {[%clk 0:01:17.7]} 35... b4 {[%clk 0:01:32.9]} 36.
Nxb4 {[%clk 0:01:17.3]} 36... Kd7 {[%clk 0:01:33.5]} 37. Nd5 {[%clk 0:01:14]}
37... Rh8 {[%clk 0:01:32.4]} 38. Rf7+ {[%clk 0:01:10.1]} 38... Kc6 {[%clk
0:01:30.1]} 39. Rc7+ {[%clk 0:01:09.6]} 39... Kb5 {[%clk 0:01:30.1]} 40. a4+
{[%clk 0:01:07]} 40... Ka5 {[%clk 0:01:30]} 41. Ra7# {[%clk 0:01:06.3]} 1-0